bitfinex/quotes_BTCUSD_20251120
["timestamp","ask_amount","ask_price","bid_price","bid_amount"]
[1763649936836,0.03121804,91048.0,91000.0,0.02233999]
[1763649936837,0.21969702,91035.0,91019.0,0.01234]
[1763649937015,0.21969572,91035.0,91034.0,0.01640232]
[1763649937247,0.21972779,91022.0,91019.0,0.01234]
[1763649937426,0.01149,91022.0,91021.0,0.01640232]
[1763649937636,0.00376,91022.0,91021.0,0.01640232]
[1763649938017,0.01546,91059.0,91042.0,0.01098394]
[1763649938219,0.0109837,91044.0,91025.0,0.01098599]
[1763649938432,0.0109837,91044.0,91035.0,0.01640232]
[1763649938433,0.21969195,91037.0,91035.0,0.01640232]
[1763649938632,0.21968978,91038.0,91021.0,0.23613156]
[1763649938633,0.01098478,91035.0,91021.0,0.01640232]
[1763649938837,0.02746226,91034.0,91022.0,0.01098635]
[1763649939032,0.01746074,91035.0,91031.0,0.21970497]
[1763649939240,0.21971804,91026.0,91021.0,0.01640232]
[1763649939444,0.21971352,91028.0,91025.0,0.2307055]
[1763649939645,0.00376,91034.0,91021.0,0.24711588]
[1763649939646,0.01098526,91031.0,91021.0,0.01640232]
[1763649939813,0.01541,91022.0,91000.0,0.01234]
[1763649940008,0.01098671,91019.0,91002.0,0.01098876]
[1763649940209,0.01098671,91019.0,90990.0,0.71162747]
[1763649940210,0.01098719,91015.0,90991.0,0.01234]
[1763649940413,0.00376,91021.0,90991.0,0.01234]
[1763649940414,0.00773,91020.0,91013.0,0.21974872]
[1763649940655,0.21974772,91014.0,91011.0,0.01098768]
[1763649940965,0.00773,91020.0,91017.0,0.01098695]
[1763649941169,0.00376,91019.0,91017.0,0.21973796]
[1763649941386,0.00376,91019.0,91010.0,0.0109878]
[1763649941387,0.01888367,91033.0,91030.0,0.01098538]
[1763649941590,0.01098526,91031.0,91021.0,0.21972784]
[1763649941758,0.01098526,91031.0,91009.0,0.03509]
[1763649941759,0.00376,91032.0,91030.0,0.21970653]
[1763649941960,0.00376,91032.0,91029.0,0.23069526]
[1763649942164,0.00376,91032.0,91025.0,0.01640232]
[1763649942343,0.03042417,91032.0,91029.0,0.23069553]
[1763649942530,0.00376,91032.0,91030.0,0.21970712]
[1763649942738,0.21974907,91013.0,91009.0,0.01234]
[1763649942938,0.00376,91014.0,91010.0,0.0109878]
[1763649943139,0.01098635,91022.0,91006.0,0.01640232]
[1763649943140,0.00376,91013.0,91006.0,0.01640232]
[1763649943378,0.00376,91013.0,91010.0,0.0109878]
[1763649943586,0.00376,91013.0,91007.0,0.01098816]
[1763649943755,0.22351124,91013.0,91008.0,0.01640232]
[1763649943962,0.22351124,91013.0,90970.0,0.00999999]
[1763649943963,0.01098828,91006.0,90994.0,0.01098973]
[1763649944167,0.01098828,91006.0,90979.0,0.02275]
[1763649944168,0.21979712,90993.0,90979.0,0.01099154]
[1763649944369,0.21979712,90993.0,90976.0,0.01640232]
[1763649944370,0.01099082,90985.0,90976.0,0.01640232]
[1763649944593,0.01099009,90991.0,90978.0,0.01099166]
[1763649944594,0.01541,90991.0,90978.0,0.01099166]
[1763649944951,0.01474985,90993.0,90985.0,0.01099082]
[1763649945169,0.00376,90993.0,90987.0,0.01099058]
[1763649945365,0.00376,90993.0,90986.0,0.0109907]
[1763649945366,0.00376,90992.0,90991.0,0.01099009]
[1763649945516,0.22747765,91014.0,91008.0,0.01098804]
[1763649945716,0.02407368,91013.0,91011.0,0.21975234]
[1763649945979,0.05210249,90999.0,90964.0,0.01099336]
[1763649946121,0.01541,90994.0,90961.0,0.01234]
[1763649946301,0.02031172,90993.0,90983.0,0.01640232]
[1763649946516,0.21980849,90989.0,90983.0,0.01640232]
[1763649946715,0.00376,90992.0,90983.0,0.01640232]
[1763649946939,0.00376,90992.0,90990.0,0.21980407]
[1763649947145,0.01546,91009.0,90998.0,0.01098925]
[1763649947341,0.0109878,91010.0,90998.0,0.01098925]
[1763649947342,0.21976331,91007.0,91002.0,0.21977461]
[1763649947687,0.22747673,91014.0,91003.0,0.01098864]
[1763649947895,0.00376,91013.0,90999.0,0.01640232]
[1763649948115,0.00376,91013.0,91004.0,0.01098852]
[1763649948320,0.21975476,91011.0,91007.0,0.21976191]
[1763649948476,0.21975194,91012.0,91006.0,0.23075396]
[1763649948678,0.00376,91011.0,91008.0,0.01098804]
[1763649948884,0.00873,91014.0,91007.0,0.23075101]
[1763649949090,0.00873,91014.0,91006.0,0.01098828]
[1763649949091,0.00376,91013.0,91006.0,0.01098828]
[1763649949295,0.001,91013.0,91012.0,0.21975124]
[1763649949489,0.00376,91013.0,91012.0,0.21975124]
[1763649949712,0.00376,91013.0,91012.0,0.25866124]
[1763649949926,0.00376,91013.0,91011.0,0.23074133]
[1763649950284,0.00376,91013.0,91010.0,0.23074124]
[1763649950285,0.00376,91013.0,91010.0,0.0109878]
[1763649950510,0.01546,91039.0,91009.0,0.01234]
[1763649950511,0.33846,91039.0,91011.0,0.01098768]
[1763649950709,0.21972003,91026.0,91023.0,0.01640232]
[1763649950888,0.23784132,91025.0,91023.0,0.01640232]
[1763649951090,0.23784132,91025.0,90990.0,0.56608427]
[1763649951091,0.01541,91024.0,90983.0,0.01640232]
[1763649951294,0.01541,91024.0,90970.0,0.01099263]
[1763649951295,0.21981963,90984.0,90970.0,0.01099263]
[1763649951654,0.00376,90983.0,90979.0,0.01099154]
[1763649951871,0.00376,90983.0,90974.0,0.01099215]
[1763649952077,0.00376,90983.0,90981.0,0.21982502]
[1763649952285,0.00376,90983.0,90969.0,0.02739507]
[1763649952489,0.00376,90983.0,90933.0,0.09845523]
[1763649952490,0.01099154,90979.0,90941.0,0.07843325]
[1763649952656,0.01099154,90979.0,90940.0,0.0002]
[1763649952657,0.01541,90970.0,90960.0,0.01099384]
[1763649952864,0.56608427,90980.0,90966.0,0.01640232]
[1763649952865,0.00376,90969.0,90966.0,0.01640232]
[1763649953097,0.00376,90968.0,90966.0,0.01640232]
[1763649953265,0.00376,90968.0,90966.0,0.23626412]
[1763649953413,0.21985994,90967.0,90949.0,0.21990128]
[1763649953631,0.2198662,90965.0,90958.0,0.01099408]
[1763649953829,0.00376,90968.0,90957.0,0.23087771]
[1763649953830,0.21987545,90961.0,90957.0,0.23087771]
[1763649954129,0.21986684,90965.0,90960.0,0.2198761]
[1763649954296,0.21985994,90967.0,90938.0,0.02275]
[1763649954495,0.21985994,90967.0,90954.0,0.21989025]
[1763649954496,0.01099299,90967.0,90954.0,0.21989025]
[1763649954697,0.21989183,90954.0,90946.0,0.21990992]
[1763649954897,0.5770769,90970.0,90958.0,0.01099408]
[1763649955098,0.2198647,90966.0,90962.0,0.0109936]
[1763649955363,0.2198647,90966.0,90961.0,0.23086695]
[1763649955568,0.21986121,90967.0,90962.0,0.0109936]
[1763649955788,0.01099203,90975.0,90961.0,0.23086738]
[1763649955789,0.01546,90993.0,90976.0,0.0109919]
[1763649955933,0.01546,90993.0,90973.0,0.01099227]
[1763649955934,0.01099082,90985.0,90973.0,0.01099227]
[1763649956145,0.23081823,90981.0,90968.0,0.01640232]
[1763649956377,0.323,90989.0,90969.0,0.01640232]
[1763649956378,0.21985433,90970.0,90969.0,0.01640232]
[1763649956523,0.01099203,90975.0,90969.0,0.01640232]
[1763649956524,0.21985121,90971.0,90969.0,0.01640232]
[1763649956730,0.2198502,90972.0,90969.0,0.01640232]
[1763649956934,0.21984877,90972.0,90969.0,0.02739507]
[1763649957134,0.21985051,90973.0,90970.0,0.23084466]
[1763649957356,0.13625453,91060.0,90970.0,0.23084466]
[1763649957357,0.00773,91000.0,90981.0,0.0109913]
[1763649957559,0.00773,91000.0,90972.0,0.01616]
[1763649957560,0.05159947,90999.0,90983.0,0.01640232]
[1763649957766,0.21985193,90971.0,90969.0,0.01640232]
[1763649957976,0.21985193,90971.0,90962.0,0.0233336]
[1763649957977,0.21985511,90969.0,90965.0,0.01099323]
[1763649958202,0.00376,90970.0,90969.0,0.21985511]
[1763649958420,0.00376,90970.0,90968.0,0.21985753]
[1763649958631,0.00376,90970.0,90968.0,0.22026993]
[1763649958900,0.00376,90970.0,90949.0,0.01099517]
[1763649958901,0.03087,90969.0,90949.0,0.01099517]
[1763649959119,0.00773,90953.0,90947.0,0.01099541]
[1763649959324,0.00773,90953.0,90942.0,0.02739833]
[1763649959325,0.00376,90952.0,90942.0,0.01640232]
[1763649959523,0.00376,90952.0,90950.0,0.21990093]
[1763649960012,0.00376,90952.0,90951.0,0.00091335]
[1763649960214,0.01546,90968.0,90951.0,0.22081197]
[1763649960416,1.09879355,91009.0,90965.0,0.23085609]
[1763649960417,0.01099118,90982.0,90965.0,0.23085609]
[1763649960623,0.01099118,90982.0,90950.0,0.56608427]
[1763649960624,0.01099323,90965.0,90941.0,0.01099614]
[1763649960825,0.21992125,90942.0,90929.0,0.01099759]
[1763649961169,0.21992125,90942.0,90911.0,0.07843325]
[1763649961170,0.21992125,90942.0,90900.0,0.0002]
[1763649961171,0.01099868,90920.0,90900.0,0.0002]
[1763649961297,0.01099831,90923.0,90900.0,0.0002]
[1763649961298,0.00753,90905.0,90900.0,0.0002]
[1763649961501,0.56608427,90914.0,90900.0,0.0002]
[1763649961502,0.21995593,90928.0,90904.0,0.01109061]
[1763649961731,0.22371825,90927.0,90915.0,0.01099928]
[1763649961953,0.01099795,90926.0,90914.0,0.0109994]
[1763649962133,0.01099795,90926.0,90910.0,0.01640232]
[1763649962134,0.01099892,90918.0,90910.0,0.01640232]
[1763649962342,0.01099892,90918.0,90904.0,9e-05]
[1763649962343,0.22000968,90906.0,90904.0,9e-05]
[1763649962552,0.01526,90917.0,90904.0,9e-05]
[1763649962721,0.4398709,90936.0,90907.0,0.01100025]
[1763649962722,0.00376,90916.0,90907.0,0.01100025]
[1763649962927,0.00376,90916.0,90904.0,0.01109061]
[1763649962928,0.01526,90922.0,90904.0,9e-05]
[1763649963155,0.01526,90922.0,90918.0,0.01099892]
[1763649963355,0.00376,90921.0,90917.0,0.01099904]
[1763649963574,0.01099892,90918.0,90899.0,0.22002242]
[1763649963887,0.01099904,90917.0,90911.0,0.01099976]
[1763649964093,0.02625868,90920.0,90906.0,0.01640232]
[1763649964095,0.01526,90920.0,90906.0,0.01100037]
[1763649964299,0.01526,90920.0,90904.0,9e-05]
[1763649964300,0.01526,90957.0,90929.0,0.01099759]
[1763649964503,0.01099481,90952.0,90935.0,0.01099686]
[1763649964700,0.01099481,90952.0,90910.0,0.01640232]
[1763649964701,0.21992715,90940.0,90929.0,0.01099759]
[1763649964919,0.02424132,90939.0,90936.0,0.23093032]
[1763649965130,0.02424132,90939.0,90932.0,0.02739954]
[1763649965131,0.21987204,90962.0,90954.0,0.01099456]
[1763649965327,0.00376,90961.0,90956.0,0.01099432]
[1763649965530,0.21987133,90963.0,90956.0,0.01099432]
[1763649965658,0.01099251,90971.0,90958.0,0.21988009]
[1763649965659,0.00376,90960.0,90958.0,0.21988009]
[1763649965863,0.00999999,91010.0,90973.0,0.01099227]
[1763649966239,0.00376,90975.0,90974.0,0.21984303]
[1763649966518,0.00376,90975.0,90973.0,0.01099227]
[1763649966519,0.00376,90975.0,90972.0,0.23083858]
[1763649966722,0.00376,90975.0,90974.0,0.01640232]
[1763649966879,0.00376,90975.0,90962.0,0.21986993]
[1763649967085,0.21985681,90969.0,90959.0,0.01099396]
[1763649967287,0.21985681,90969.0,90943.0,0.23141669]
[1763649967288,0.21989379,90953.0,90939.0,0.01099638]
[1763649967489,0.00376,90952.0,90947.0,0.01640232]
[1763649967695,0.00376,90951.0,90947.0,0.01640232]
[1763649967908,0.00376,90951.0,90949.0,0.21990184]
[1763649968110,0.00376,90951.0,90948.0,0.23090117]
[1763649968341,0.00376,90951.0,90945.0,0.01099565]
[1763649968342,0.21990104,90950.0,90945.0,0.21991132]
[1763649968540,0.00376,90951.0,90946.0,0.01099553]
[1763649968736,0.00376,90951.0,90933.0,0.01640232]
[1763649968737,0.01099614,90941.0,90933.0,0.01640232]
[1763649968936,0.01099614,90941.0,90910.0,0.01640232]
[1763649968937,0.00773,90934.0,90927.0,0.21995666]
[1763649969198,0.01099722,90932.0,90922.0,0.01099843]
[1763649969373,0.00376,90933.0,90911.0,0.01099976]
[1763649969374,0.01099783,90927.0,90911.0,0.01099976]
[1763649969528,0.22370457,90933.0,90916.0,0.21998166]
[1763649969717,0.21996713,90923.0,90914.0,0.0109994]
[1763649969913,0.2199788,90918.0,90914.0,0.0109994]
[1763649970145,0.2199788,90918.0,90910.0,0.01640232]
[1763649970146,0.22374266,90917.0,90912.0,0.01099964]
[1763649970356,0.22374266,90917.0,90910.0,0.01099989]
[1763649970357,0.00376,90917.0,90910.0,0.01099989]
[1763649970598,0.02258,90916.0,90909.0,0.22000022]
[1763649970797,0.01100025,90907.0,90900.0,0.0002]
[1763649971001,0.2200099,90905.0,90901.0,0.01100097]
[1763649971194,0.2200099,90905.0,90900.0,0.0002]
[1763649971195,0.00376,90905.0,90900.0,0.0002]
[1763649971430,0.07844249,90905.0,90900.0,0.0002]
[1763649971632,0.54301958,90901.0,90900.0,0.0002]
[1763649972191,0.22000196,90909.0,90900.0,0.0002]
[1763649972410,0.00376,90901.0,90900.0,0.0002]
[1763649972849,0.02634,90901.0,90900.0,0.0002]
[1763649973054,0.02734,90901.0,90900.0,0.0002]
[1763649973295,0.01099747,90930.0,90900.0,0.0112011]
[1763649973508,0.21999643,90911.0,90900.0,0.0002]
[1763649973730,0.001,90905.0,90900.0,0.0002]
[1763649973952,0.2200194,90902.0,90900.0,0.0002]
[1763649974394,0.02258,90901.0,90900.0,0.0002]
[1763649974611,0.02258,90915.0,90890.0,0.01100231]
[1763649974820,0.001,90901.0,90897.0,0.01100146]
[1763649975027,0.00376,90900.0,90899.0,0.22002322]
[1763649975498,0.00376,90900.0,90897.0,0.23102966]
[1763649975719,0.00376,90900.0,90880.0,0.0002]
[1763649975720,0.01100158,90896.0,90880.0,0.0002]
[1763649975917,0.00376,90899.0,90895.0,0.0110017]
[1763649976050,0.02258,90913.0,90910.0,0.01099989]
[1763649976249,0.00999999,90950.0,90904.0,0.01100061]
[1763649976250,0.02258,90929.0,90907.0,0.01095731]
[1763649976448,0.01099904,90917.0,90912.0,0.01099964]
[1763649976711,0.01099904,90917.0,90907.0,0.02195756]
[1763649976712,0.02258,90942.0,90926.0,0.01099795]
[1763649976917,0.22370215,90933.0,90926.0,0.01095731]
[1763649977118,0.2199543,90929.0,90926.0,0.01095731]
[1763649977361,0.21999054,90913.0,90912.0,0.01095731]
[1763649977556,0.07266556,90932.0,90912.0,0.01095731]
[1763649977557,0.00773,90934.0,90931.0,0.01099734]
[1763649977768,0.2199036,90949.0,90943.0,0.01099589]
[1763649977899,0.56608427,90970.0,90947.0,0.01099541]
[1763649977900,0.21988121,90959.0,90947.0,0.01099541]
[1763649978094,0.21988121,90959.0,90943.0,0.01095731]
[1763649978095,0.03124581,90956.0,90943.0,0.01095731]
[1763649978303,0.02846143,90955.0,90943.0,0.01095731]
[1763649978557,0.21991438,90945.0,90943.0,0.01095731]
[1763649978756,0.01099638,90939.0,90934.0,0.01095731]
[1763649978905,0.01099674,90936.0,90934.0,0.01095731]
[1763649979106,0.21995424,90928.0,90925.0,0.01640232]
[1763649979328,0.04228902,90935.0,90907.0,0.01100025]
[1763649979329,0.01099904,90917.0,90907.0,0.01100025]
[1763649979525,0.22001122,90905.0,90899.0,0.01100122]
[1763649979804,0.0038,90916.0,90901.0,0.22001824]
[1763649980028,0.2200502,90889.0,90884.0,0.01100303]
[1763649980230,0.00764,90915.0,90880.0,0.0002]
[1763649980231,0.22006689,90882.0,90880.0,0.0002]
[1763649980477,0.01480255,90888.0,90880.0,0.0002]
[1763649980478,0.00753,90881.0,90880.0,0.0002]
[1763649980938,0.03011,90881.0,90880.0,0.0002]
[1763649981290,0.03902754,90943.0,90880.0,0.0002]
[1763649981291,0.00753,90891.0,90888.0,0.01100255]
[1763649981501,0.00764,90915.0,90902.0,0.01100085]
[1763649981839,0.0038,90914.0,90911.0,0.01099976]
[1763649982042,0.0038,90914.0,90912.0,0.21999137]
[1763649982169,0.00764,90924.0,90912.0,0.21999137]
[1763649982371,0.21993833,90935.0,90912.0,0.21999137]
[1763649982372,0.0038,90923.0,90920.0,0.01099868]
[1763649982627,0.02258,90955.0,90944.0,0.01099577]
[1763649982827,0.01099759,90977.0,90952.0,0.21989449]
[1763649983042,0.01099759,90977.0,90944.0,0.01099577]
[1763649983043,0.0038,90956.0,90943.0,0.01099589]
[1763649983229,0.0038,90956.0,90950.0,0.01099505]
[1763649983446,0.0038,90956.0,90926.0,0.02447]
[1763649983447,0.01099456,90954.0,90940.0,0.01099626]
[1763649983639,0.02748672,90953.0,90945.0,0.01099565]
[1763649983853,0.0038,90956.0,90955.0,0.21988895]
[1763649984051,0.0038,90956.0,90947.0,0.01099541]
[1763649984052,0.0038,90956.0,90926.0,0.323]
[1763649984256,0.21992,90943.0,90931.0,0.23094238]
[1763649984485,0.23094675,90931.0,90900.0,0.0110011]
[1763649984815,0.23094675,90931.0,90880.0,0.5828896]
[1763649984816,0.21997125,90921.0,90913.0,0.21999054]
[1763649985129,0.21997125,90921.0,90891.0,0.0115]
[1763649985130,0.0109994,90914.0,90880.0,0.0002]
[1763649985353,0.02804693,90920.0,90898.0,0.01100134]
[1763649985354,0.00764,90905.0,90898.0,0.01100134]
[1763649985607,0.0038,90904.0,90897.0,0.22002926]
[1763649985833,0.0038,90904.0,90901.0,0.01100097]
[1763649986061,0.0038,90904.0,90902.0,0.22001486]
[1763649986269,0.0038,90904.0,90898.0,0.01100134]
[1763649986472,0.0038,90904.0,90903.0,0.22001474]
[1763649986947,0.02258,90932.0,90903.0,0.22001474]
[1763649986948,0.02258,90945.0,90933.0,0.0109971]
[1763649987176,0.2199509,90930.0,90925.0,0.01099807]
[1763649987429,0.01099565,90945.0,90931.0,0.01099734]
[1763649987655,0.21992758,90940.0,90936.0,0.01099674]
[1763649987882,0.21994151,90934.0,90929.0,0.01640232]
[1763649988114,0.21993006,90938.0,90929.0,0.01640232]
[1763649988115,0.21993006,90938.0,90935.0,0.01099686]
[1763649988350,0.0038,90944.0,90941.0,0.01099614]
[1763649988567,0.01099614,90941.0,90929.0,0.02739991]
[1763649988783,0.01479577,90944.0,90900.0,0.33299999]
[1763649988784,0.21994438,90933.0,90923.0,0.01099831]
[1763649989001,0.03848563,90943.0,90924.0,0.01640232]
[1763649989002,0.01099601,90942.0,90924.0,0.01640232]
[1763649989214,0.21993653,90936.0,90931.0,0.21994519]
[1763649989448,0.01099722,90932.0,90922.0,0.01099843]
[1763649989678,0.001,90945.0,90911.0,0.21999453]
[1763649989679,0.01099759,90929.0,90914.0,0.0109994]
[1763649989895,0.01099843,90922.0,90914.0,0.0109994]
[1763649990112,0.02846801,90928.0,90925.0,0.01099807]
[1763649990348,0.001,90945.0,90928.0,0.21995424]
[1763649990582,0.001,90945.0,90944.0,0.21991555]
[1763649990827,0.03902754,90997.0,90941.0,0.02739846]
[1763649990828,0.01099118,90982.0,90964.0,0.23085931]
[1763649991032,0.0038,90979.0,90965.0,0.01099323]
[1763649991254,0.0038,90979.0,90950.0,0.5826896]
[1763649991255,0.0038,90979.0,90977.0,0.21983424]
[1763649991660,0.21977289,91004.0,90992.0,0.01098997]
[1763649991864,0.21977289,91004.0,90978.0,0.02416]
[1763649991865,0.01098719,91015.0,90999.0,0.01098913]
[1763649992090,0.02248683,91018.0,91005.0,0.0109884]
[1763649992091,0.21976106,91008.0,91005.0,0.0109884]
[1763649992319,0.0038,91014.0,91007.0,0.01098816]
[1763649992555,0.0293789,91013.0,91002.0,0.01098876]
[1763649992770,0.21976529,91007.0,91000.0,0.01098901]
[1763649992996,0.01098816,91007.0,90997.0,0.01640232]
[1763649993227,0.01098816,91007.0,90984.0,0.21981886]
[1763649993228,0.0109878,91010.0,90989.0,0.01099033]
[1763649993421,0.21977628,91002.0,90996.0,0.01640232]
[1763649993620,0.0109878,91010.0,90997.0,0.01098937]
[1763649993859,0.21978505,90998.0,90996.0,0.01640232]
[1763649994049,0.0109878,91010.0,90996.0,0.01640232]
[1763649994050,0.21975717,91010.0,91005.0,0.0109884]
[1763649994339,0.0038,91009.0,91007.0,0.21976299]
[1763649994580,0.0038,91009.0,91000.0,0.01098901]
[1763649994782,0.01098816,91007.0,90978.0,0.01099166]
[1763649995021,0.0038,91009.0,90970.0,0.01099263]
[1763649995022,0.01098997,90992.0,90970.0,0.01099263]
[1763649995196,0.21981342,90987.0,90979.0,0.01640232]
[1763649995420,0.05196702,91007.0,90979.0,0.01640232]
[1763649995671,0.21977342,91003.0,90997.0,0.01640232]
[1763649995897,0.0038,91006.0,91004.0,0.23075689]
[1763649996107,0.0038,91006.0,91004.0,0.22675689]
[1763649996528,0.0038,91006.0,91005.0,0.02443]
[1763649996739,0.02927066,91077.0,91005.0,0.02443]
[1763649996740,0.00764,91054.0,91036.0,0.01098466]
[1763649996947,0.00764,91054.0,91005.0,0.34743]
[1763649996948,0.21968365,91040.0,91039.0,0.01640232]
[1763649997166,0.01098321,91048.0,91027.0,0.23070061]
[1763649997167,0.01098345,91046.0,91028.0,0.01640232]
[1763649997361,0.01098345,91046.0,91018.0,0.01098683]
[1763649997362,0.21970311,91032.0,91018.0,0.01098683]
[1763649997521,0.21971474,91028.0,91025.0,0.01640232]
[1763649997730,0.0038,91034.0,91030.0,0.01098538]
[1763649997934,0.0038,91034.0,91022.0,0.01098635]
[1763649997935,0.0038,91034.0,91008.0,0.01216]
[1763649998139,0.0038,91034.0,91025.0,0.01640232]
[1763649998140,0.21971744,91026.0,91025.0,0.01640232]
[1763649998493,0.21970537,91031.0,91016.0,0.01098707]
[1763649998633,0.21970537,91031.0,91014.0,0.21974469]
[1763649998634,0.21971744,91026.0,91025.0,0.01640232]
[1763649998845,0.21975069,91013.0,91006.0,0.01098828]
[1763649999046,0.0038,91018.0,91006.0,0.01098828]
[1763649999248,0.21975064,91013.0,91011.0,0.01740232]
[1763649999432,0.21975032,91013.0,91011.0,0.01740232]
[1763649999837,0.21975032,91013.0,91011.0,0.001]
[1763650000047,0.23073468,91014.0,91011.0,0.001]
[1763650000048,0.21974794,91014.0,91011.0,0.001]
[1763650000246,0.24721962,91013.0,91011.0,0.002]
[1763650000451,0.24721962,91013.0,90944.0,0.01216]
[1763650000452,0.01099094,90984.0,90972.0,0.01099239]
[1763650000648,0.0038,90983.0,90975.0,0.01640232]
[1763650000891,0.0038,90982.0,90979.0,0.01099154]
[1763650001120,0.0038,90981.0,90970.0,0.01099263]
[1763650001266,0.21983336,90978.0,90977.0,0.01640232]
[1763650001712,0.21983336,90978.0,90953.0,0.02443]
[1763650001713,0.21984932,90972.0,90966.0,0.01099311]
[1763650001914,0.0147913,90981.0,90962.0,0.0109936]
[1763650001915,0.0038,90981.0,90962.0,0.0109936]
[1763650002116,0.0038,90981.0,90975.0,0.01640232]
[1763650002117,0.01099142,90980.0,90975.0,0.01640232]
[1763650002339,0.21986573,90965.0,90961.0,0.01640232]
[1763650002543,0.21986573,90965.0,90913.0,0.01121792]
[1763650002544,0.21988412,90957.0,90956.0,0.01640232]
[1763650002766,0.21991313,90945.0,90943.0,0.00023576]
[1763650003078,0.21991071,90946.0,90943.0,0.00023576]
[1763650003079,0.01099553,90946.0,90943.0,0.00023576]
[1763650003219,0.0147942,90957.0,90944.0,0.01640232]
[1763650003421,0.01099541,90947.0,90927.0,0.01640232]
[1763650003648,0.02266,90956.0,90927.0,0.01640232]
[1763650003649,0.01099589,90943.0,90927.0,0.01640232]
[1763650003876,0.0038,90942.0,90934.0,0.01099698]
[1763650004086,0.0038,90942.0,90932.0,0.21994279]
[1763650004247,0.0038,90942.0,90930.0,0.01099747]
[1763650004248,0.21993184,90938.0,90935.0,0.01099686]
[1763650004445,0.01099626,90940.0,90927.0,0.01640232]
[1763650004651,0.0038,90942.0,90927.0,0.02740015]
[1763650004907,0.001,90945.0,90943.0,0.21991578]
[1763650005112,0.001,90945.0,90944.0,0.00625496]
[1763650005328,0.0038,90945.0,90944.0,0.00625496]
[1763650005557,0.0038,90945.0,90939.0,0.01099638]
[1763650005558,0.21997694,90919.0,90910.0,0.00840232]
[1763650005767,0.01099795,90926.0,90910.0,0.00840232]
[1763650005768,0.21998812,90914.0,90910.0,0.00840232]
[1763650006042,0.21998812,90914.0,90900.0,0.22002168]
[1763650006043,0.22665812,90914.0,90900.0,0.22002168]
[1763650006258,0.22665812,90914.0,90904.0,0.01100061]
[1763650006481,0.24931812,90914.0,90901.0,0.01100097]
[1763650006689,0.24931812,90914.0,90897.0,0.22002725]
[1763650006917,0.22665812,90914.0,90901.0,0.22001941]
[1763650007148,0.24931812,90914.0,90903.0,0.22001304]
[1763650007382,0.25031812,90914.0,90899.0,0.23102556]
[1763650007590,0.03033,90914.0,90906.0,0.01100037]
[1763650007799,0.03033,90914.0,90896.0,0.0274039]
[1763650008003,0.03033,90914.0,90901.0,0.01100097]
[1763650008211,0.03033,90914.0,90902.0,0.01100085]
[1763650008424,0.03033,90914.0,90896.0,0.0274039]
[1763650008628,0.02933,90914.0,90895.0,0.0110017]
[1763650008846,0.03133,90914.0,90873.0,0.01640232]
[1763650009054,0.47813954,90914.0,90881.0,0.0110034]
[1763650009259,0.47813954,90914.0,90880.0,0.01120352]
[1763650009260,0.52813954,90914.0,90880.0,0.01120352]
[1763650009467,0.42603705,90914.0,90893.0,0.01100194]
[1763650009666,0.03513,90914.0,90898.0,0.23102629]
[1763650009923,0.03513,90914.0,90912.0,0.2199912]
[1763650009924,0.001,90914.0,90912.0,0.2199912]
[1763650010170,0.0038,90914.0,90897.0,0.01100146]
[1763650010415,0.02266,90925.0,90910.0,0.01099989]
[1763650010623,0.001,90914.0,90913.0,0.21999054]
[1763650010838,0.001,90914.0,90913.0,0.54926398]
[1763650011072,0.02748279,90966.0,90958.0,0.01099408]
[1763650011289,0.00375,90983.0,90967.0,0.23085098]
[1763650011290,0.00758,90970.0,90967.0,0.23085098]
[1763650011502,0.00758,90970.0,90960.0,0.01099384]
[1763650011503,0.0038,90969.0,90945.0,0.01216]
[1763650011719,0.01845649,90969.0,90961.0,0.01099372]
[1763650011888,0.21986266,90966.0,90961.0,0.01099372]
[1763650012088,0.0038,90969.0,90962.0,0.01640232]
[1763650012359,0.001,90966.0,90960.0,0.01099384]
[1763650012579,0.001,90966.0,90964.0,0.21986531]
[1763650012815,0.0038,90968.0,90966.0,0.21986064]
[1763650013032,0.02266,91002.0,90979.0,0.01099154]
[1763650013247,0.01098913,90999.0,90984.0,0.01099094]
[1763650013460,0.0038,91001.0,90987.0,0.01099058]
[1763650013687,0.21979781,90993.0,90982.0,0.01099118]
[1763650013908,0.0038,90992.0,90989.0,0.01099033]
[1763650014124,0.21977221,91004.0,90994.0,0.01098973]
[1763650014330,0.21979888,90993.0,90986.0,0.0109907]
[1763650014538,0.21979057,90996.0,90988.0,0.01099046]
[1763650014754,0.24445466,90995.0,90991.0,0.01099009]
[1763650014975,0.2197356,91019.0,91003.0,0.01098864]
[1763650015189,0.01094415,91049.0,91010.0,0.0109878]
[1763650015190,0.01098587,91026.0,91010.0,0.0109878]
[1763650015427,0.02266,91027.0,91004.0,0.01640232]
[1763650015428,0.0038,91015.0,91004.0,0.01640232]
[1763650015646,0.21975607,91010.0,91004.0,0.01640232]
[1763650015871,0.21975607,91010.0,90970.0,0.00999999]
[1763650015872,0.01098973,90994.0,90969.0,0.01099275]
[1763650016123,0.01198913,90999.0,90987.0,0.01099058]
[1763650016124,0.0038,90993.0,90987.0,0.01099058]
[1763650016340,0.0038,90992.0,90990.0,0.01099021]
[1763650016556,0.0038,90992.0,90982.0,0.01640232]
[1763650016785,0.2198108,90988.0,90983.0,0.01640232]
[1763650016982,0.0038,90992.0,90983.0,0.02739338]
[1763650017260,0.0038,90992.0,90988.0,0.01099046]
[1763650017399,0.0038,90992.0,90973.0,0.02443]
[1763650017400,0.01099094,90984.0,90969.0,0.01099275]
[1763650017600,0.01099094,90984.0,90977.0,0.01640232]
[1763650017601,0.2198237,90982.0,90977.0,0.01640232]
[1763650017827,0.21981867,90985.0,90978.0,0.01099166]
[1763650018043,0.21980195,90991.0,90977.0,0.01140232]
[1763650018392,0.01098744,91013.0,90993.0,0.21979712]
[1763650018596,0.54307172,91040.0,90977.0,0.33440232]
[1763650018597,0.01098889,91001.0,90977.0,0.33440232]
[1763650018803,0.01098985,90993.0,90977.0,0.01140232]
[1763650019008,0.01099021,90990.0,90979.0,0.01099154]
[1763650019214,0.01098985,90993.0,90986.0,0.0109907]
[1763650019215,0.0038,90989.0,90986.0,0.0109907]
[1763650019394,0.23076149,91004.0,90977.0,0.01140232]
[1763650019548,0.21980799,90989.0,90980.0,0.2308176]
[1763650019751,0.0038,90988.0,90985.0,0.01099082]
[1763650019953,0.0038,90988.0,90987.0,0.21981162]
[1763650020519,0.0038,90988.0,90956.0,0.01099432]
[1763650020520,0.02646,90988.0,90956.0,0.01099432]
[1763650020646,0.02646,90988.0,90947.0,0.01640232]
[1763650020647,0.02646,90988.0,90961.0,0.01640232]
[1763650020846,0.05877249,91005.0,90961.0,0.01640232]
[1763650020847,0.21979602,90994.0,90986.0,0.0109907]
[1763650021052,0.00667,91015.0,90997.0,0.01098937]